Workbook

Sheet ПАТ Вінницягаз
A1: ПАТ "УКРТРАНСГАЗ" | G1: ПАСПОРТ ФІЗИКО-ХІМІЧНИХ ПОКАЗНИКІВ ПРИРОДНОГО ГАЗУ № 01-11/12.2016 | AD1: Троща | AE1: 206.2
A2: Філія "УМГ "Черкаситрансгаз" | G2: переданого Гайсинським ЛВУМГ та прийнятого ПАТ "Вінницягаз" Вінницької області | AB2: Маршут № 832 | AD2: Воловодовка | AE2: 14.1
A3: Гайсинський п/м Гайсинське ЛВУМГ | G3: по ГВС (ПВВГ, СВГ, ГРС): Воловодівка, Троща
A4: Вимірювальна хіміко-аналітична лабораторія
A5: Свідоцтво № ПУ-0077/14 чинно до 27.05.2018 р. | K5: газопроводу "ПРОГРЕС" | V5: за період з | X5: 2016-12-01 | Z5: по | AA5: =EOMONTH(X5,0) -> 2016-12-31
A7: Число місяця | B7: Компонентний склад, % мол. | N7: Фізико-хімічні показники газу обчислені на основі компонентного складу, 101,325 кПа | X7: Температура точки роси вологи (Р = 3.92 МПа), ºС | Y7: Температура точки роси вуглеводнів, ºС | Z7: Масова концентрація сірководню, мг/м3 | AA7: Масова концентрація меркаптанової сірки, мг/м3 | AB7: Маса механічних домішок, мг/м3 | AC7: Обсяг газу, тис. м3 (обрахованого на вузлах обліку газу)
N8: Густина абсолютна, кг/м3,при 20 ºС, | O8: Температура вимірювання/згоряння при | V8: 20/25ºС
B9: метан, С1 | C9: етан, С2 | D9: пропан, С3 | E9: ізо-бутан, і-С4 | F9: н-бутан, н-С4 | G9: нео-пентан, нео-С5 | H9: ізо-пентан, і-С5 | I9: н-пентан, н-С5 | J9: гексани та вищі, С6+ | K9: кисень, О2 | L9: азот, N2 | M9: діоксид вуглецю, CО2 | O9: Теплота згоряння нижча, ккал/м3 | P9: Теплота згоряння нижча, МДж/м3 | Q9: Теплота згоряння нижча, кВт⋅год/м3 | R9: Теплота згоряння вища, ккал/м3 | S9: Теплота згоряння вища, МДж/м3 | T9: Теплота згоряння вища, кВт⋅год/м3 | U9: Число Воббе вище, ккал/м3 | V9: Число Воббе вище, МДж/м3 | W9: Число Воббе вище, кВт⋅год/м3
A11: 1 | O11: 8175 | P11: 34.23 | Q11: =P11/3.6 -> 9.508333333 | R11: 9066 | S11: 37.96 | T11: =S11/3.6 -> 10.54444444 | AC11: =РасходГазаОбщий($AE$1,A11,$X$5) / 1000 + РасходГазаОбщий($AE$2,A11,$X$5,"x:\gaysin") / 1000 -> 13.43158423 | AD11: =SUM(B11:M11)+$K$42+$N$42 -> 0
A12: 2 | O12: 8175 | P12: 34.23 | Q12: =P12/3.6 -> 9.508333333 | R12: 9066 | S12: 37.96 | T12: =S12/3.6 -> 10.54444444 | AC12: 13.49719141 | AD12: 0
A13: 3 | O13: 8175 | P13: 34.23 | Q13: 9.508333333 | R13: 9066 | S13: 37.96 | T13: 10.54444444 | AC13: 13.85784692 | AD13: 0 | AE13: =IF(AD13=100,"ОК"," ") -> 
A14: 4 | O14: 8175 | P14: 34.23 | Q14: 9.508333333 | R14: 9066 | S14: 37.96 | T14: 10.54444444 | AC14: 14.52889014 | AD14: 0 | AE14: =IF(AD14=100,"ОК"," ") -> 
A15: 5 | O15: 8175 | P15: 34.23 | Q15: 9.508333333 | R15: 9066 | S15: 37.96 | T15: 10.54444444 | AC15: 15.16483789 | AD15: 0
A16: 6 | O16: 8175 | P16: 34.23 | Q16: 9.508333333 | R16: 9066 | S16: 37.96 | T16: 10.54444444 | AC16: 14.73308643 | AD16: 0
A17: 7 | O17: 8175 | P17: 34.23 | Q17: 9.508333333 | R17: 9066 | S17: 37.96 | T17: 10.54444444 | AC17: 15.79577246 | AD17: 0
A18: 8 | B18: 96.241 | C18: 2.0549 | D18: 0.6479 | E18: 0.1013 | F18: 0.0995 | G18: 0.0058 | H18: 0.0191 | I18: 0.0132 | J18: 0.0036 | K18: 0.0074 | L18: 0.624 | M18: 0.1823 | N18: 0.6977 | O18: 8176 | P18: 34.2306 | Q18: 9.5085 | R18: 9063 | S18: 37.9434 | T18: 10.53983333 | U18: 11908 | V18: 49.8545 | W18: =V18/3.6 -> 13.84847222 | X18: -21.6 | AC18: 15.18621484 | AD18: 100 | AE18: ОК
A19: 9 | O19: 8176 | P19: 34.2306 | Q19: =P19/3.6 -> 9.5085 | R19: 9063 | S19: 37.9434 | T19: =S19/3.6 -> 10.53983333 | AC19: =РасходГазаОбщий($AE$1,A19,$X$5) / 1000 + РасходГазаОбщий($AE$2,A19,$X$5,"x:\gaysin") / 1000 -> 13.317396 | AD19: 0
A20: 10 | O20: 8176 | P20: 34.2306 | Q20: 9.5085 | R20: 9063 | S20: 37.9434 | T20: 10.53983333 | AC20: 12.21108838 | AD20: 0
A21: 11 | O21: 8176 | P21: 34.2306 | Q21: 9.5085 | R21: 9063 | S21: 37.9434 | T21: 10.53983333 | AC21: 11.45515479 | AD21: 0
A22: 12 | O22: 8176 | P22: 34.2306 | Q22: 9.5085 | R22: 9063 | S22: 37.9434 | T22: 10.53983333 | AC22: 12.49325 | AD22: 0
A23: 13 | O23: 8176 | P23: 34.2306 | Q23: 9.5085 | R23: 9063 | S23: 37.9434 | T23: 10.53983333 | AC23: 14.4700791 | AD23: 0
A24: 14 | O24: 8176 | P24: 34.2306 | Q24: 9.5085 | R24: 9063 | S24: 37.9434 | T24: 10.53983333 | AC24: 14.70196094 | AD24: 0
A25: 15 | B25: 96.2207 | C25: 2.0602 | D25: 0.6516 | E25: 0.1027 | F25: 0.1012 | G25: 0.004 | H25: 0.0197 | I25: 0.0137 | J25: 0.0036 | K25: 0.0072 | L25: 0.6331 | M25: 0.1824 | N25: 0.6978 | O25: 8176 | P25: 34.2326 | Q25: 9.509055556 | R25: 9063 | S25: 37.9454 | T25: 10.54038889 | U25: 11907 | V25: 49.8515 | W25: 13.84763889 | X25: -22.5 | AC25: 15.04854199 | AD25: 100.0001
A26: 16 | O26: 8176 | P26: 34.2326 | Q26: =P26/3.6 -> 9.509055556 | R26: 9063 | S26: 37.9454 | T26: =S26/3.6 -> 10.54038889 | AC26: 16.17638281 | AD26: 0
A27: 17 | O27: 8176 | P27: 34.2326 | Q27: 9.509055556 | R27: 9063 | S27: 37.9454 | T27: 10.54038889 | AC27: 15.4830498 | AD27: 0
A28: 18 | O28: 8176 | P28: 34.2326 | Q28: 9.509055556 | R28: 9063 | S28: 37.9454 | T28: 10.54038889 | AC28: 14.95787549 | AD28: 0
A29: 19 | O29: 8176 | P29: 34.2326 | Q29: 9.509055556 | R29: 9063 | S29: 37.9454 | T29: 10.54038889 | AC29: 14.40647266 | AD29: 0
A30: 20 | O30: 8176 | P30: 34.2326 | Q30: 9.509055556 | R30: 9063 | S30: 37.9454 | T30: 10.54038889 | AC30: 13.94196582 | AD30: 0 | AE30: =IF(AD30=100,"ОК"," ") -> 
A31: 21 | O31: 8176 | P31: 34.2326 | Q31: 9.509055556 | R31: 9063 | S31: 37.9454 | T31: 10.54038889 | AC31: 14.20837451 | AD31: 0
A32: 22 | B32: 96.1809 | C32: 2.0842 | D32: 0.6581 | E32: 0.1021 | F32: 0.0997 | G32: 0.0041 | H32: 0.0197 | I32: 0.0136 | J32: 0.0051 | K32: 0.0074 | L32: 0.6353 | M32: 0.1898 | N32: 0.6982 | O32: 8178 | P32: 34.2393 | Q32: 9.510916667 | R32: 9065 | S32: 37.9525 | T32: 10.54236111 | U32: 11906 | V32: 49.8493 | W32: 13.84702778 | X32: -21.3 | AC32: 14.17702734 | AD32: 100 | AE32: ОК
A33: 23 | O33: 8178 | P33: 34.2393 | Q33: =P33/3.6 -> 9.510916667 | R33: 9065 | S33: 37.9525 | T33: =S33/3.6 -> 10.54236111 | AC33: 14.09829932 | AD33: 0 | AE33: =IF(AD33=100,"ОК"," ") -> 
A34: 24 | O34: 8178 | P34: 34.2393 | Q34: 9.510916667 | R34: 9065 | S34: 37.9525 | T34: 10.54236111 | AC34: 13.91922314 | AD34: 0
A35: 25 | O35: 8178 | P35: 34.2393 | Q35: 9.510916667 | R35: 9065 | S35: 37.9525 | T35: 10.54236111 | AC35: 13.71697095 | AD35: 0
A36: 26 | O36: 8178 | P36: 34.2393 | Q36: 9.510916667 | R36: 9065 | S36: 37.9525 | T36: 10.54236111 | AC36: =РасходГазаОбщий($AE$1,A36,$X$5) / 1000 + РасходГазаОбщий($AE$2,A36,$X$5,"x:\gaysin") / 1000 -> 13.3329502 | AD36: 0
A37: 27 | O37: 8178 | P37: 34.2393 | Q37: 9.510916667 | R37: 9065 | S37: 37.9525 | T37: 10.54236111 | AC37: 12.88234839 | AD37: 0
A38: 28 | B38: 96.1932 | C38: 2.0672 | D38: 0.6667 | E38: 0.1046 | F38: 0.1031 | G38: 0.0014 | H38: 0.0198 | I38: 0.014 | J38: 0.0051 | K38: 0.0073 | L38: 0.6349 | M38: 0.1826 | N38: 0.6981 | O38: 8179 | P38: 34.2444 | Q38: 9.512333333 | R38: 9066 | S38: 37.958 | T38: 10.54388889 | U38: 11908 | V38: 49.8575 | W38: 13.84930556 | X38: -21.1 | Z38: 0 | AA38: 0 | AB38: 0 | AC38: 13.25738696 | AD38: 99.9999
A39: 29 | O39: 8179 | P39: 34.2444 | Q39: =P39/3.6 -> 9.512333333 | R39: 9066 | S39: 37.958 | T39: =S39/3.6 -> 10.54388889 | AC39: 14.06702148 | AD39: 0
A40: 30 | O40: 8179 | P40: 34.2444 | Q40: 9.512333333 | R40: 9066 | S40: 37.958 | T40: 10.54388889 | AC40: =РасходГазаОбщий($AE$1,A40,$X$5) / 1000 + РасходГазаОбщий($AE$2,A40,$X$5,"x:\gaysin") / 1000 -> 14.88253076 | AD40: =SUM(B40:M40)+$K$42+$N$42 -> 0 | AE40: =IF(AD40=100,"ОК"," ") -> 
A41: 31 | O41: 8179 | P41: 34.2444 | Q41: 9.512333333 | R41: 9066 | S41: 37.958 | T41: 10.54388889 | AC41: =РасходГазаОбщий($AE$1,A41,$X$5) / 1000 + РасходГазаОбщий($AE$2,A41,$X$5,"x:\gaysin") / 1000 -> 14.80132031 | AD41: 0
A42: Умовно постійні компоненти, мол. % від 01.01.2016 р. | I42: Гелій | K42: 0 | L42: Водень | N42: 0 | O42: =SUMPRODUCT(O11:O41,AC11:AC41)/SUM(AC11:AC41) -> 8176.534615 | P42: =SUMPRODUCT(P11:P41,AC11:AC41)/SUM(AC11:AC41) -> 34.23436323 | Q42: =SUMPRODUCT(Q11:Q41,AC11:AC41)/SUM(AC11:AC41) -> 9.509545343 | R42: =SUMPRODUCT(R11:R41,AC11:AC41)/SUM(AC11:AC41) -> 9064.456648 | S42: =SUMPRODUCT(S11:S41,AC11:AC41)/SUM(AC11:AC41) -> 37.95130702 | T42: =SUMPRODUCT(T11:T41,AC11:AC41)/SUM(AC11:AC41) -> 10.54202973 | Y42: Всього - обсяг природного газу за місяць з урахуванням ВТВ: | AC42: =SUM(AC11:AC41) -> 438.2020955
H43: Середньозважене значення теплоти згоряння: | AC43: 442.265
B45: Начальник управління Гайсинського ЛВУМГ Омельченко Ю.В. | V45: =$AA$5 -> 2016-12-31
C46: Підрозділу підприємства, якому підпорядкована лабораторія | O46: прізвище | R46: підпис | V46: дата
B47: Начальник лабораторії Стук О.В. | V47: =$AA$5 -> 2016-12-31
C48: Лабораторія, де здійснювалось вимірювання газу | O48: прізвище | R48: підпис | V48: дата
B49: Провідний економіст із збуту Гайсинського ЛВУМГ Гнатишин І.В. | V49: =$AA$5 -> 2016-12-31
C50: Служба ОНПТГ | O50: прізвище | R50: підпис | V50: дата

Sheet Лист1

Sheet variablesList (hidden)
A1: 3 | B1: x:\gaysin | C1: 10,11,24,25,127,128,132,180,207,215 | D1: x:\
B2: x:\Illinci | C2: 31
B3: x:\Talne
